fUSD/lending_fUSD_20240424
["ID","MTS","AMOUNT","RATE_DAILY","PERIOD"]
[323449949,1713994240129,-500.0,0.00011404,2]
[323449950,1713994240138,-500.0,0.00011404,2]
[323449951,1713994240149,-500.0,0.00011404,2]
[323449952,1713994240160,-576.26,0.00011404,2]
[323449953,1713994240169,-500.0,0.00011404,2]
[323449954,1713994240179,-639.53,0.00011404,2]
[323449955,1713994240188,-667.03,0.00011404,2]
[323449956,1713994240198,-500.0,0.00011404,2]
[323449957,1713994240207,-500.0,0.00011404,2]
[323449958,1713994240216,-540.46,0.00011404,2]
[323449959,1713994240226,-500.0,0.00011404,2]
[323449960,1713994240235,-500.0,0.00011404,2]
[323449961,1713994240244,-500.0,0.00011404,2]
[323449962,1713994240253,-820.55,0.00011404,2]
[323449963,1713994240263,-500.0,0.00011404,2]
[323449964,1713994240272,-890.33,0.00011404,2]
[323449965,1713994240281,-311.45,0.00011404,2]
[323449966,1713994240290,-500.0,0.00011404,2]
[323449967,1713994240299,-599.08,0.00011404,2]
[323449968,1713994240309,-668.02,0.00011404,2]
[323449969,1713994240318,-734.15,0.00011404,2]
[323449970,1713994240328,-500.0,0.00011404,2]
[323449971,1713994240337,-500.0,0.00011404,2]
[323449972,1713994240346,-2942.49,0.00011404,2]
[323449973,1713994240356,-742.71,0.00011404,2]
[323449974,1713994240365,-2992.64,0.00011404,2]
[323449975,1713994240376,-2765.33,0.00011404,2]
[323449976,1713994240385,-500.0,0.00011404,2]
[323449977,1713994240394,-692.73,0.00011404,2]
[323449978,1713994240402,-500.0,0.00011404,2]
[323449979,1713994240412,-29806.57,0.00011404,2]
[323449980,1713994240422,-544.34,0.00011404,2]
[323449981,1713994240433,-500.0,0.00011404,2]
[323449982,1713994240443,-500.0,0.00011404,2]
[323449983,1713994240453,-500.0,0.00011404,2]
[323449984,1713994240462,-500.0,0.00011404,2]
[323449985,1713994240471,-500.0,0.00011404,2]
[323449986,1713994240480,-500.0,0.00011404,2]
[323449987,1713994240490,-500.0,0.00011404,2]
[323449988,1713994240499,-500.0,0.00011404,2]
[323449989,1713994240507,-500.0,0.00011404,2]
[323449990,1713994240516,-507.2,0.00011404,2]
[323449991,1713994240525,-500.0,0.00011404,2]
[323449992,1713994240534,-500.0,0.00011404,2]
[323449993,1713994240543,-772.57,0.00011404,2]
[323449994,1713994240553,-589.27,0.00011404,2]
[323449995,1713994240562,-500.0,0.00011404,2]
[323449996,1713994240571,-500.0,0.00011404,2]
[323449997,1713994240580,-558.04,0.00011404,2]
[323449998,1713994240589,-500.0,0.00011404,2]
[323449999,1713994240598,-500.0,0.00011404,2]
[323450000,1713994240607,-500.0,0.00011404,2]
[323450001,1713994240616,-500.0,0.00011404,2]
[323450002,1713994240626,-533.41,0.00011404,2]
[323450003,1713994240635,-500.0,0.00011404,2]
[323450004,1713994240644,-500.0,0.00011404,2]
[323450005,1713994240653,-761.06,0.00011404,2]
[323450006,1713994240663,-500.0,0.00011404,2]
[323450007,1713994240672,-5231.51,0.00011404,2]
[323450008,1713994240681,-500.0,0.00011404,2]
[323450009,1713994240690,-500.0,0.00011404,2]
[323450010,1713994240699,-762.83,0.00011404,2]
[323450011,1713994240708,-8042.82,0.00011404,2]
[323450012,1713994240717,-500.0,0.00011404,2]
[323450013,1713994240726,-500.0,0.00011404,2]
[323450014,1713994240735,-500.0,0.00011404,2]
[323450015,1713994240745,-500.0,0.00011404,2]
[323450016,1713994240754,-500.0,0.00011404,2]
[323450017,1713994240763,-797.66,0.00011404,2]
[323450018,1713994240773,-500.0,0.00011404,2]
[323450019,1713994240782,-874.98,0.00011404,2]
[323450020,1713994240793,-500.0,0.00011404,2]
[323450021,1713994240803,-2093.75,0.00011404,2]
[323450022,1713994240813,-566.01,0.00011404,2]
[323450023,1713994240822,-500.0,0.00011404,2]
[323450024,1713994240831,-500.0,0.00011404,2]
[323450025,1713994240841,-500.0,0.00011404,2]
[323450026,1713994240850,-500.0,0.00011404,2]
[323450027,1713994240859,-1295.55,0.00011404,2]
[323450028,1713994240868,-500.0,0.00011404,2]
[323450029,1713994240878,-805.63,0.00011404,2]
[323450030,1713994240888,-500.0,0.00011404,2]
[323450031,1713994240897,-744.72,0.00011404,2]
[323450032,1713994240906,-1001.09,0.00011404,2]
[323450033,1713994240915,-762.96,0.00011404,2]
[323450034,1713994240923,-500.0,0.00011404,2]
[323450035,1713994240932,-500.0,0.00011404,2]
[323450036,1713994240942,-500.0,0.00011404,2]
[323450037,1713994240951,-500.0,0.00011404,2]
[323450038,1713994240960,-500.0,0.00011404,2]
[323450039,1713994240969,-2375.22,0.00011404,2]
[323450040,1713994240982,-681.19,0.00011404,2]
[323450041,1713994240992,-500.0,0.00011404,2]
[323450042,1713994241001,-500.0,0.00011404,2]
[323450043,1713994241010,-1008.99,0.00011404,2]
[323450044,1713994241020,-739.77,0.00011404,2]
[323450045,1713994241029,-780.92,0.00011404,2]
[323450046,1713994241038,-500.0,0.00011404,2]
[323450047,1713994241047,-500.0,0.00011404,2]
[323450048,1713994241057,-500.0,0.00011404,2]
[323450049,1713994241067,-500.0,0.00011404,2]
[323450050,1713994241076,-500.0,0.00011404,2]
[323450051,1713994241085,-500.0,0.00011404,2]
[323450052,1713994241095,-500.0,0.00011404,2]
[323450053,1713994241104,-500.0,0.00011404,2]
[323450054,1713994241113,-500.0,0.00011404,2]
[323450055,1713994241122,-197.32116675,0.00011404,2]
[323450056,1713994241132,-500.0,0.00011404,2]
[323450057,1713994241141,-500.0,0.00011404,2]
[323450058,1713994241150,-552.8,0.00011404,2]
[323450059,1713994241159,-500.0,0.00011404,2]
[323450060,1713994241168,-866.8,0.00011404,2]
[323450061,1713994241178,-500.0,0.00011404,2]
[323450062,1713994241187,-500.0,0.00011404,2]
[323450063,1713994241196,-500.0,0.00011404,2]
[323450064,1713994241205,-527.01,0.00011404,2]
[323450065,1713994241214,-500.0,0.00011504,2]
[323450066,1713994241223,-500.0,0.00011504,2]
[323450067,1713994241233,-500.0,0.00011504,2]
[323450068,1713994241242,-517.5,0.00011504,2]
[323450069,1713994241251,-500.0,0.00011504,2]
[323450070,1713994241260,-500.0,0.00011504,2]
[323450071,1713994241269,-500.0,0.00011504,2]
[323450072,1713994241278,-500.0,0.00011504,2]
[323450073,1713994241287,-500.0,0.00011504,2]
[323450074,1713994241296,-500.0,0.00011504,2]
[323450075,1713994241306,-500.0,0.00011504,2]
[323450076,1713994241315,-500.0,0.00011504,2]
[323450077,1713994241324,-500.0,0.00011504,2]
[323450078,1713994241333,-474.01220885,0.00011504,2]
[323450079,1713994241342,-500.0,0.00011504,2]
[323450080,1713994241351,-500.0,0.00011504,2]
[323450081,1713994241360,-1878.67553145,0.00011505,2]
[323450082,1713994241370,-1000.0,0.00011562,2]
[323450083,1713994241380,-207.73201416,0.00011578,2]
[323450084,1713994241389,-500.0,0.00011678,2]
[323450085,1713994241399,-500.0,0.00011678,2]
[323450086,1713994241408,-500.0,0.00011678,2]
[323450087,1713994241417,-500.0,0.00011678,2]
[323450088,1713994241426,-500.0,0.00011678,2]
[323450089,1713994241435,-500.0,0.00011678,2]
[323450090,1713994241445,-150.0,0.00011678,2]
[323450091,1713994241454,-500.0,0.00011678,2]
[323450092,1713994241463,-500.0,0.00011678,2]
[323450093,1713994241472,-500.0,0.00011678,2]
[323450094,1713994241482,-500.0,0.00011678,2]
[323450095,1713994241492,-500.0,0.00011678,2]
[323450096,1713994241501,-500.0,0.00011678,2]
[323450097,1713994241510,-335.08,0.00011678,2]
[323450098,1713994241520,-254.28,0.00011678,2]
[323450099,1713994241529,-500.0,0.00011678,2]
[323450100,1713994241538,-500.0,0.00011678,2]
[323450101,1713994241548,-500.0,0.00011678,2]
[323450102,1713994241557,-364.98,0.00011678,2]
[323450103,1713994241566,-215.98,0.00011678,2]
[323450104,1713994241575,-596.53,0.00011678,2]
[323450105,1713994241585,-500.0,0.00011678,2]
[323450106,1713994241594,-500.0,0.00011678,2]
[323450107,1713994241604,-6720.95,0.00011678,2]
[323450108,1713994241613,-679.14,0.00011678,2]
[323450109,1713994241622,-325.66,0.00011678,2]
[323450110,1713994241632,-500.0,0.00011678,2]
[323450111,1713994241641,-500.0,0.00011678,2]
[323450112,1713994241649,-690.97,0.00011678,2]
[323450113,1713994241658,-500.0,0.00011678,2]
[323450114,1713994241668,-500.0,0.00011678,2]
[323450115,1713994241677,-500.0,0.00011678,2]
[323450116,1713994241687,-576.26,0.00011678,2]
[323450117,1713994241696,-500.0,0.00011678,2]
[323450118,1713994241705,-639.53,0.00011678,2]
[323450119,1713994241714,-667.03,0.00011678,2]
[323450120,1713994241723,-500.0,0.00011678,2]
[323450121,1713994241733,-500.0,0.00011678,2]
[323450122,1713994241742,-540.46,0.00011678,2]
[323450123,1713994241752,-419.76,0.00011678,2]
[323450124,1713994241761,-500.0,0.00011678,2]
[323450125,1713994241770,-474.53869256,0.00011678,2]
[323450126,1713994241779,-820.55,0.00011678,2]
[323450127,1713994241789,-434.4,0.00011678,2]
[323450128,1713994241798,-890.33,0.00011678,2]
[323450129,1713994241807,-500.0,0.00011678,2]
[323450130,1713994241816,-599.08,0.00011678,2]
[323450131,1713994241825,-668.02,0.00011678,2]
[323450132,1713994241834,-734.15,0.00011678,2]
[323450133,1713994241843,-500.0,0.00011678,2]
[323450134,1713994241853,-500.0,0.00011678,2]
[323450135,1713994241862,-2942.49,0.00011678,2]
[323450136,1713994241871,-742.71,0.00011678,2]
[323450137,1713994241881,-2992.64,0.00011678,2]
[323450138,1713994241890,-2765.33,0.00011678,2]
[323450139,1713994241899,-500.0,0.00011678,2]
[323450140,1713994241909,-692.73,0.00011678,2]
[323450141,1713994241918,-500.0,0.00011678,2]
[323450142,1713994241926,-29806.57,0.00011678,2]
[323450143,1713994241936,-544.34,0.00011678,2]
[323450144,1713994241945,-500.0,0.00011678,2]
[323450145,1713994241954,-500.0,0.00011678,2]
[323450146,1713994241963,-500.0,0.00011678,2]
[323450147,1713994241974,-371.73621017,0.00011678,2]
[323450148,1713994241986,-500.0,0.00011678,2]
[323450149,1713994241995,-500.0,0.00011678,2]
[323450150,1713994242005,-500.0,0.00011678,2]
[323450151,1713994242015,-500.0,0.00011678,2]
[323450152,1713994242024,-500.0,0.00011678,2]
[323450153,1713994242078,-507.2,0.00011678,2]
[323450154,1713994242087,-500.0,0.00011678,2]
[323450155,1713994242097,-500.0,0.00011678,2]
[323450156,1713994242106,-772.57,0.00011678,2]
[323450157,1713994242115,-589.27,0.00011678,2]
[323450158,1713994242124,-500.0,0.00011678,2]
[323450159,1713994242135,-500.0,0.00011678,2]
[323450160,1713994242144,-558.04,0.00011678,2]
[323450161,1713994242153,-500.0,0.00011678,2]
[323450162,1713994242163,-500.0,0.00011678,2]
[323450163,1713994242172,-435.50944911,0.00011678,2]
[323450164,1713994242182,-500.0,0.00011678,2]
[323450165,1713994242192,-500.0,0.00011678,2]
[323450166,1713994242201,-535.94,0.00011678,2]
[323450167,1713994242210,-761.06,0.00011678,2]
[323450168,1713994242219,-500.0,0.00011678,2]
[323450169,1713994242228,-5231.51,0.00011678,2]
[323450170,1713994242237,-500.0,0.00011678,2]
[323450171,1713994242247,-500.0,0.00011678,2]
[323450172,1713994242255,-762.83,0.00011678,2]
[323450173,1713994242265,-8042.82,0.00011678,2]
[323450174,1713994242273,-500.0,0.00011678,2]
[323450175,1713994242282,-500.0,0.00011678,2]
[323450176,1713994242291,-500.0,0.00011678,2]
[323450177,1713994242300,-500.0,0.00011678,2]
[323450178,1713994242309,-500.0,0.00011678,2]
[323450179,1713994242318,-797.66,0.00011678,2]
[323450180,1713994242327,-500.0,0.00011678,2]
[323450181,1713994242336,-874.98,0.00011678,2]
[323450183,1713994242346,-500.0,0.00011678,2]
[323450185,1713994242355,-2093.75,0.00011678,2]
[323450186,1713994242364,-566.01,0.00011678,2]
[323450187,1713994242373,-500.0,0.00011678,2]
[323450188,1713994242383,-500.0,0.00011678,2]
[323450189,1713994242392,-500.0,0.00011678,2]
[323450190,1713994242401,-500.0,0.00011678,2]
[323450191,1713994242411,-1295.55,0.00011678,2]
[323450192,1713994242420,-500.0,0.00011678,2]
[323450193,1713994242428,-805.63,0.00011678,2]
[323450194,1713994242437,-500.0,0.00011678,2]
[323450195,1713994242447,-744.72,0.00011678,2]
[323450197,1713994242456,-1001.09,0.00011678,2]
[323450200,1713994242465,-762.96,0.00011678,2]
[323450202,1713994242474,-500.0,0.00011678,2]
[323450205,1713994242483,-500.0,0.00011678,2]
[323450206,1713994242492,-500.0,0.00011678,2]
[323450207,1713994242501,-270.77021954,0.00011678,2]
[323450208,1713994242510,-500.0,0.00011678,2]
[323450209,1713994242518,-2375.22,0.00011678,2]
[323450210,1713994242527,-681.19,0.00011678,2]
[323450211,1713994242536,-500.0,0.00011678,2]
[323450212,1713994242544,-500.0,0.00011678,2]
[323450213,1713994242553,-1008.99,0.00011678,2]
[323450214,1713994242562,-739.77,0.00011678,2]
[323450215,1713994242571,-780.92,0.00011678,2]
[323450216,1713994242580,-500.0,0.00011678,2]
[323450217,1713994242589,-500.0,0.00011678,2]
[323450218,1713994242598,-500.0,0.00011678,2]
[323450219,1713994242607,-500.0,0.00011678,2]
[323450220,1713994242616,-500.0,0.00011678,2]
[323450221,1713994242625,-500.0,0.00011678,2]
[323450222,1713994242636,-500.0,0.00011678,2]
[323450223,1713994242645,-500.0,0.00011678,2]
[323450224,1713994242655,-500.0,0.00011678,2]
[323450225,1713994242664,-500.0,0.00011678,2]
[323450226,1713994242673,-500.0,0.00011678,2]
[323450227,1713994242682,-552.8,0.00011678,2]
[323450228,1713994242692,-500.0,0.00011678,2]
[323450229,1713994242702,-866.8,0.00011678,2]
[323450230,1713994242712,-500.0,0.00011678,2]
[323450231,1713994242722,-500.0,0.00011678,2]
[323450232,1713994242733,-500.0,0.00011678,2]
[323450233,1713994242743,-527.01,0.00011678,2]
[323450234,1713994242753,-1030.5412573,0.00011775,3]
[323450235,1713994242763,-500.0,0.00011778,2]
[323450236,1713994242772,-500.0,0.00011778,2]
[323450237,1713994242782,-500.0,0.00011778,2]
[323450238,1713994242792,-517.5,0.00011778,2]
[323450239,1713994242801,-500.0,0.00011778,2]
[323450240,1713994242810,-500.0,0.00011778,2]
[323450241,1713994242819,-500.0,0.00011778,2]
[323450242,1713994242829,-200.89884016,0.00011778,2]
[323450243,1713994242838,-500.0,0.00011778,2]
[323450244,1713994242847,-500.0,0.00011778,2]
[323450245,1713994242856,-500.0,0.00011778,2]
[323450246,1713994242865,-500.0,0.00011778,2]
[323450247,1713994242874,-500.0,0.00011778,2]
[323450248,1713994242890,-500.0,0.00011778,2]
[323450249,1713994242900,-500.0,0.00011778,2]
[323450250,1713994242910,-500.0,0.00011952,2]
[323450251,1713994242919,-471.2359367,0.00011952,2]
[323450252,1713994242928,-500.0,0.00011952,2]
[323450253,1713994242937,-500.0,0.00011952,2]
[323450254,1713994242947,-500.0,0.00011952,2]
[323450255,1713994242956,-500.0,0.00011952,2]
[323450256,1713994242966,-150.0,0.00011952,2]
[323450257,1713994242977,-500.0,0.00011952,2]
[323450258,1713994242987,-500.0,0.00011952,2]
[323450260,1713994242996,-500.0,0.00011952,2]
[323450262,1713994243005,-500.0,0.00011952,2]
[323450263,1713994243013,-500.0,0.00011952,2]
[323450265,1713994243024,-500.0,0.00011952,2]
[323450267,1713994243033,-500.0,0.00011952,2]
[323450269,1713994243042,-500.0,0.00011952,2]
[323450271,1713994243052,-500.0,0.00011952,2]
[323450273,1713994243062,-596.53,0.00011952,2]
[323450275,1713994243070,-500.0,0.00011952,2]
[323450276,1713994243079,-500.0,0.00011952,2]
[323450277,1713994243088,-6720.95,0.00011952,2]
[323450278,1713994243098,-679.14,0.00011952,2]
[323450279,1713994243107,-500.0,0.00011952,2]
[323450280,1713994243116,-500.0,0.00011952,2]
[323450281,1713994243125,-690.97,0.00011952,2]
[323450282,1713994243137,-500.0,0.00011952,2]
[323450284,1713994243146,-500.0,0.00011952,2]
[323450286,1713994243155,-500.0,0.00011952,2]
[323450287,1713994243163,-576.26,0.00011952,2]
[323450288,1713994243172,-500.0,0.00011952,2]
[323450289,1713994243182,-639.53,0.00011952,2]
[323450290,1713994243191,-667.03,0.00011952,2]
[323450291,1713994243201,-500.0,0.00011952,2]
[323450292,1713994243210,-500.0,0.00011952,2]
[323450293,1713994243219,-540.46,0.00011952,2]
[323450294,1713994243228,-500.0,0.00011952,2]
[323450295,1713994243237,-820.55,0.00011952,2]
[323450296,1713994243245,-890.33,0.00011952,2]
[323450297,1713994243254,-500.0,0.00011952,2]
[323450298,1713994243263,-599.08,0.00011952,2]
[323450299,1713994243273,-668.02,0.00011952,2]
[323450300,1713994243281,-734.15,0.00011952,2]
[323450301,1713994243291,-500.0,0.00011952,2]
[323450302,1713994243300,-500.0,0.00011952,2]
[323450303,1713994243310,-2942.49,0.00011952,2]
[323450304,1713994243319,-742.71,0.00011952,2]
[323450305,1713994243328,-2992.64,0.00011952,2]
[323450306,1713994243338,-2765.33,0.00011952,2]
[323450307,1713994243347,-500.0,0.00011952,2]
[323450308,1713994243356,-692.73,0.00011952,2]
[323450309,1713994243365,-500.0,0.00011952,2]
[323450310,1713994243374,-29806.57,0.00011952,2]
[323450311,1713994243385,-544.34,0.00011952,2]
[323450312,1713994243394,-500.0,0.00011952,2]
[323450313,1713994243403,-500.0,0.00011952,2]
[323450314,1713994243413,-500.0,0.00011952,2]
[323450315,1713994243422,-500.0,0.00011952,2]
[323450316,1713994243430,-500.0,0.00011952,2]
[323450317,1713994243439,-370.65809066,0.00011952,2]
[323450318,1713994243450,-500.0,0.00011952,2]
[323450319,1713994243459,-500.0,0.00011952,2]
[323450320,1713994243469,-507.2,0.00011952,2]
[323450321,1713994243479,-500.0,0.00011952,2]
[323450322,1713994243489,-500.0,0.00011952,2]
[323450323,1713994243498,-772.57,0.00011952,2]
[323450324,1713994243507,-589.27,0.00011952,2]
[323450325,1713994243517,-500.0,0.00011952,2]
[323450326,1713994243526,-500.0,0.00011952,2]
[323450327,1713994243538,-558.04,0.00011952,2]
[323450328,1713994243547,-317.33,0.00011952,2]
[323450329,1713994243556,-500.0,0.00011952,2]
[323450330,1713994243565,-500.0,0.00011952,2]
[323450331,1713994243574,-500.0,0.00011952,2]
[323450332,1713994243583,-761.06,0.00011952,2]
[323450333,1713994243592,-500.0,0.00011952,2]
[323450334,1713994243602,-5231.51,0.00011952,2]
[323450335,1713994243611,-500.0,0.00011952,2]
[323450336,1713994243620,-500.0,0.00011952,2]
[323450337,1713994243633,-762.83,0.00011952,2]
[323450338,1713994243642,-8042.82,0.00011952,2]
[323450339,1713994243652,-500.0,0.00011952,2]
[323450340,1713994243661,-500.0,0.00011952,2]
[323450341,1713994243670,-500.0,0.00011952,2]
[323450342,1713994243679,-500.0,0.00011952,2]
[323450343,1713994243688,-500.0,0.00011952,2]
[323450344,1713994243697,-797.66,0.00011952,2]
[323450345,1713994243706,-500.0,0.00011952,2]
[323450346,1713994243715,-874.98,0.00011952,2]
[323450347,1713994243725,-646.64,0.00011952,2]
[323450348,1713994243734,-2093.75,0.00011952,2]
[323450349,1713994243743,-566.01,0.00011952,2]
[323450350,1713994243752,-500.0,0.00011952,2]
[323450351,1713994243761,-500.0,0.00011952,2]
[323450352,1713994243771,-500.0,0.00011952,2]
[323450353,1713994243780,-500.0,0.00011952,2]
[323450354,1713994243789,-1295.55,0.00011952,2]
[323450355,1713994243798,-500.0,0.00011952,2]
[323450356,1713994243807,-805.63,0.00011952,2]
[323450357,1713994243817,-500.0,0.00011952,2]
[323450358,1713994243826,-744.72,0.00011952,2]
[323450359,1713994243835,-1001.09,0.00011952,2]
[323450360,1713994243845,-762.96,0.00011952,2]
[323450361,1713994243855,-529.08150614,0.00011952,2]
[323450362,1713994243865,-500.0,0.00011952,2]
[323450363,1713994243874,-500.0,0.00011952,2]
[323450364,1713994243887,-500.0,0.00011952,2]
[323450365,1713994243897,-2375.22,0.00011952,2]
[323450366,1713994243906,-681.19,0.00011952,2]
[323450367,1713994243916,-500.0,0.00011952,2]
[323450368,1713994243925,-500.0,0.00011952,2]
[323450369,1713994243935,-1008.99,0.00011952,2]
[323450370,1713994243945,-739.77,0.00011952,2]
[323450371,1713994243954,-780.92,0.00011952,2]
[323450372,1713994243964,-500.0,0.00011952,2]
[323450373,1713994243973,-500.0,0.00011952,2]
[323450374,1713994243986,-500.0,0.00011952,2]
[323450375,1713994243995,-172.00657559,0.00011952,2]
[323450376,1713994244005,-500.0,0.00011952,2]
[323450377,1713994244014,-500.0,0.00011952,2]
[323450378,1713994244024,-500.0,0.00011952,2]
[323450379,1713994244034,-500.0,0.00011952,2]
[323450380,1713994244043,-500.0,0.00011952,2]
[323450381,1713994244053,-500.0,0.00011952,2]
[323450382,1713994244063,-500.0,0.00011952,2]
[323450383,1713994244072,-552.8,0.00011952,2]
[323450384,1713994244082,-500.0,0.00011952,2]
[323450385,1713994244091,-866.8,0.00011952,2]
[323450386,1713994244101,-515.75,0.00011952,2]
[323450387,1713994244110,-500.0,0.00011952,2]
[323450388,1713994244119,-500.0,0.00011952,2]
[323450389,1713994244129,-12058.37161419,0.00012,2]
[323450390,1713994244139,-409.12011988,0.00012,2]
[323450391,1713994244154,-2750.0,0.00012,2]
[323450392,1713994244164,-2602.63,0.00012011,2]
[323450393,1713994244174,-166.88,0.00012033,2]
[323450394,1713994244183,-5000.0,0.00012035,2]
[323450395,1713994244192,-500.0,0.00012052,2]
[323450396,1713994244201,-500.0,0.00012052,2]
[323450397,1713994244212,-500.0,0.00012052,2]
[323450398,1713994244223,-517.5,0.00012052,2]
[323450399,1713994244233,-500.0,0.00012052,2]
[323450400,1713994244243,-500.0,0.00012052,2]
[323450401,1713994244254,-500.0,0.00012052,2]
[323450402,1713994244263,-500.0,0.00012052,2]
[323450403,1713994244274,-500.0,0.00012052,2]
[323450404,1713994244284,-500.0,0.00012052,2]
[323450405,1713994244295,-500.0,0.00012052,2]
[323450406,1713994244305,-500.0,0.00012052,2]
[323450407,1713994244314,-500.0,0.00012052,2]
[323450408,1713994244324,-500.0,0.00012052,2]
[323450409,1713994244334,-2500.0,0.00012095,2]
[323450410,1713994244343,-12500.0,0.0001211,2]
[323450411,1713994244354,-169.11011791,0.00012126,2]
[323450412,1713994244364,-5000.0,0.00012134,2]
[323450413,1713994244376,-8266.07,0.00012134,2]
[323450414,1713994244387,-10000.0,0.00012218,2]
[323450415,1713994244397,-500.0,0.00012226,2]
[323450416,1713994244407,-500.0,0.00012226,2]
[323450417,1713994244416,-500.0,0.00012226,2]
[323450418,1713994244426,-500.0,0.00012226,2]
[323450419,1713994244436,-500.0,0.00012226,2]
[323450420,1713994244446,-207.68,0.00012226,2]
[323450421,1713994244457,-500.0,0.00012226,2]
[323450422,1713994244467,-500.0,0.00012226,2]
[323450423,1713994244478,-500.0,0.00012226,2]
[323450424,1713994244488,-500.0,0.00012226,2]
[323450425,1713994244499,-500.0,0.00012226,2]
[323450426,1713994244510,-500.0,0.00012226,2]
[323450427,1713994244519,-500.0,0.00012226,2]
[323450428,1713994244530,-500.0,0.00012226,2]
[323450429,1713994244540,-500.0,0.00012226,2]
[323450430,1713994244549,-596.53,0.00012226,2]
[323450431,1713994244558,-500.0,0.00012226,2]
[323450432,1713994244567,-500.0,0.00012226,2]
[323450433,1713994244576,-6720.95,0.00012226,2]
[323450434,1713994244585,-679.14,0.00012226,2]
[323450435,1713994244594,-500.0,0.00012226,2]
[323450436,1713994244603,-500.0,0.00012226,2]
[323450437,1713994244612,-690.97,0.00012226,2]
[323450438,1713994244621,-500.0,0.00012226,2]
[323450439,1713994244632,-500.0,0.00012226,2]
[323450440,1713994244641,-414.21031982,0.00012226,2]
[323450441,1713994244650,-576.26,0.00012226,2]
[323450442,1713994244660,-500.0,0.00012226,2]
[323450443,1713994244669,-639.53,0.00012226,2]
[323450444,1713994244678,-667.03,0.00012226,2]
[323450445,1713994244687,-500.0,0.00012226,2]
[323450446,1713994244696,-255.33181711,0.00012226,2]
[323450447,1713994244706,-540.46,0.00012226,2]
[323450448,1713994244715,-500.0,0.00012226,2]
[323450449,1713994244724,-820.55,0.00012226,2]
[323450450,1713994244733,-890.33,0.00012226,2]
[323450451,1713994244743,-500.0,0.00012226,2]
[323450452,1713994244752,-599.08,0.00012226,2]
[323450453,1713994244761,-668.02,0.00012226,2]
[323450454,1713994244769,-734.15,0.00012226,2]
[323450455,1713994244778,-500.0,0.00012226,2]
[323450456,1713994244787,-500.0,0.00012226,2]
[323450457,1713994244796,-2942.49,0.00012226,2]
[323450458,1713994244806,-742.71,0.00012226,2]
[323450459,1713994244815,-2992.64,0.00012226,2]
[323450460,1713994244824,-2765.33,0.00012226,2]
[323450461,1713994244833,-500.0,0.00012226,2]
[323450462,1713994244843,-692.73,0.00012226,2]
[323450463,1713994244852,-500.0,0.00012226,2]
[323450464,1713994244861,-29806.57,0.00012226,2]
[323450465,1713994244870,-544.34,0.00012226,2]
[323450466,1713994244881,-500.0,0.00012226,2]